Workbook

Sheet Лист1
A1: Школа | C1: МБОУ "СОШ №26" НМР РТ | F1: Согласование: | G1: должность | H1: Директор
G2: фамилия | H2: Хайруллина Ч.М.
A3: Возрастная категория | E3: 7-11 лет | G3: дата | H3: 25 | I3: 12 | J3: 2023
H4: день | I4: месяц | J4: год
A5: Неделя | B5: День недели | C5: Прием пищи | D5: Раздел меню | E5: Блюда | F5: Вес блюда, г | G5: Белки | H5: Жиры | I5: Углеводы | J5: Калорийность | K5: № рецептуры | L5: Цена
A6: 1 | B6: 1 | C6: Завтрак | D6: хлеб бел. | E6: Бутерброд с маслом сливочным | F6: 40 | G6: 2.36 | H6: 7.49 | I6: 14.89 | J6: 136 | L6: 37.55
D7: хлеб бел. | E7: Батон нарезной | F7: 75 | G7: 5.6 | H7: 2.16 | I7: 38.36 | J7: 195.52
D8: гор.блюдо | E8: Каша "Дружба" молочная с маслом сливочным | F8: 185 | G8: 10.48 | H8: 10.43 | I8: 25.24 | J8: 217.4
D9: гор.напиток | E9: Чай с сахаром и лимоном | F9: 200 | G9: 0.13 | H9: 0.02 | I9: 8.2 | J9: 34.02
D12: итого | F12: =F6+F7+F8+F9 -> 500 | G12: =SUM(G6:G11) -> 18.57 | H12: =SUM(H6:H11) -> 20.1 | I12: =SUM(I6:I11) -> 86.69 | J12: =SUM(J6:J11) -> 582.94 | L12: =SUM(L6:L11) -> 37.55
A13: =A6 -> 1 | B13: =B6 -> 1 | C13: Обед | D13: 1 блюдо | E13: Щи из свежей капусты с картофелем, со сметаной | F13: 205 | G13: 3.74 | H13: 14.71 | I13: 6.5 | J13: 79.9 | L13: 77.59
D14: 2 блюдо | E14: Шницель куриный | F14: 90 | G14: 10.53 | H14: 10.02 | I14: 5.13 | J14: 195.51
D15: гарнир | E15: Макаронные изделия (рожки) отварные с маслом сливочным | F15: 153 | G15: 5.78 | H15: 1.28 | I15: 42.96 | J15: 226.1
D16: напиток | E16: Напиток из сухофруктов | F16: 200 | G16: 0.7 | H16: 0.1 | I16: 32 | J16: 132.8
D17: хлеб бел. | E17: Хлеб пшеничный | F17: 25 | G17: 1.9 | H17: 0.2 | I17: 12.3 | J17: 58.75
D18: хлеб черн. | E18: Хлеб дарницкий | F18: 45 | G18: 2.97 | H18: 0.54 | I18: 17.82 | J18: 89.1
D21: итого | F21: 728 | G21: =SUM(G13:G20) -> 25.62 | H21: =SUM(H13:H20) -> 26.85 | I21: =SUM(I13:I20) -> 116.71 | J21: =SUM(J13:J20) -> 782.16 | L21: =SUM(L13:L20) -> 77.59
A22: =A6 -> 1 | B22: =B6 -> 1 | C22: Итого за день: | F22: =F12+F21 -> 1228 | G22: =G12+G21 -> 44.19 | H22: =H12+H21 -> 46.95 | I22: =I12+I21 -> 203.4 | J22: =J12+J21 -> 1365.1 | L22: =L12+L21 -> 115.14
